bitfinex-derivatives/quotes_ETHF0:USTF0_20251007
["timestamp","ask_amount","ask_price","bid_price","bid_amount"]
[1759843896063,0.1302,4752.0,4751.9,0.00159927]
[1759843896264,0.1302,4752.0,4751.9,3.20939927]
[1759843896464,0.1302,4752.0,4751.9,44.00939927]
[1759843896965,0.4308,4752.0,4751.9,44.00939927]
[1759843897166,0.4308,4752.0,4751.9,40.80159927]
[1759843897663,0.4308,4752.0,4751.9,41.18012927]
[1759843897861,0.1302,4752.0,4751.9,41.18012927]
[1759843898066,0.4308,4752.0,4751.9,41.18012927]
[1759843898456,0.4308,4752.0,4751.9,41.39112927]
[1759843898660,0.4308,4752.0,4751.9,0.21259927]
[1759843899060,0.4308,4752.0,4751.9,41.01259927]
[1759843899663,0.68316,4751.6,4751.5,1.1859]
[1759843899964,0.3046,4751.6,4751.5,0.211]
[1759843900471,0.3046,4749.9,4749.8,0.3787]
[1759843900766,0.1308,4750.0,4749.8,0.59154471]
[1759843901068,0.1308,4750.5,4750.4,0.37865]
[1759843901269,0.4354,4750.5,4750.4,3.79745]
[1759843901769,0.43778324,4750.5,4750.4,44.59745]
[1759843902770,0.43778324,4750.5,4750.4,41.011]
[1759843903159,0.43778324,4750.5,4750.4,0.211]
[1759843905471,5.43778324,4750.5,4750.4,0.211]
[1759843905973,0.43778324,4750.5,4750.4,0.211]
[1759843906373,5.43778324,4750.5,4750.4,0.211]
[1759843906575,0.43778324,4750.5,4750.4,0.211]
[1759843907376,5.43778324,4750.5,4750.4,0.211]
[1759843909067,5.43778324,4750.5,4750.0,0.8034]
[1759843909068,0.37867,4750.2,4750.0,0.8034]
[1759843909263,3.5124,4750.1,4750.0,0.8034]
[1759843909469,0.3046,4749.9,4749.8,0.00184471]
[1759843910877,5.3046,4749.9,4749.8,0.00184471]
[1759843911377,0.81417,4749.0,4748.9,0.211]
[1759843911578,0.4354,4748.0,4747.5,0.94721]
[1759843911880,3.6432,4748.0,4747.9,0.61091216]
[1759843912372,3.6432,4748.0,4747.9,0.61333571]
[1759843912578,3.6432,4748.0,4747.9,0.23448571]
[1759843913878,3.6432,4748.0,4747.9,0.02348571]
[1759843915579,8.6432,4748.0,4747.9,0.02348571]
[1759843916177,8.8542,4748.0,4747.9,0.02348571]
[1759843916778,8.5496,4748.0,4747.6,0.8702]
[1759843917075,0.3066,4745.9,4745.8,0.37902]
[1759843917270,0.3066,4745.9,4745.8,0.56702]
[1759843917674,0.30841055,4745.9,4745.8,0.56895326]
[1759843918074,0.30841055,4745.9,4745.8,41.36895326]
[1759843918481,0.30841055,4745.9,4745.8,40.98993326]
[1759843919182,0.30841055,4745.9,4745.8,41.36895326]
[1759843920281,0.30841055,4745.9,4745.8,40.98993326]
[1759843920976,0.30841055,4745.9,4745.8,45.98993326]
[1759843921179,0.30841055,4745.9,4745.8,40.98993326]
[1759843921580,0.30841055,4745.9,4745.8,40.80193326]
[1759843921779,0.30841055,4745.9,4745.8,0.21293326]
[1759843926281,0.00181055,4745.9,4745.8,0.21293326]
[1759843926585,0.1253,4746.5,4746.4,0.37897]
[1759843926778,0.4319,4746.5,4746.4,0.211]
[1759843926979,0.4319,4746.5,4746.4,41.011]
[1759843927379,0.43429308,4746.5,4746.4,41.011]
[1759843927682,0.43429308,4746.5,4746.4,0.211]
[1759843927980,0.1253,4746.0,4745.8,0.00193326]
[1759843928181,3.89341,4745.9,4745.8,0.00193326]
[1759843928385,0.1253,4744.5,4744.1,3.2078]
[1759843928583,0.3066,4744.4,4744.2,0.164]
[1759843928776,0.68574,4744.4,4744.2,0.164]
[1759843929284,0.68574,4744.4,4744.2,0.16573325]
[1759843929680,0.3066,4744.4,4744.2,0.16573325]
[1759843929878,0.4319,4744.5,4744.4,0.37913]
[1759843930275,0.1253,4744.5,4744.4,5.37913]
[1759843930880,0.3066,4744.9,4744.8,0.3791]
[1759843931081,0.3066,4744.9,4744.8,3.7989]
[1759843932082,0.1253,4745.0,4744.8,3.7989]
[1759843932288,0.3066,4744.9,4744.8,3.7989]
[1759843932581,0.1253,4745.5,4745.4,0.37905]
[1759843932783,0.1253,4745.5,4745.4,3.79885]
[1759843932982,0.4319,4745.5,4745.4,3.79885]
[1759843933580,0.1253,4746.0,4745.9,0.37901]
[1759843933789,0.1253,4746.0,4745.9,0.59101]
[1759843934591,0.4319,4746.0,4745.9,0.59101]
[1759843937091,0.4319,4746.0,4745.9,0.212]
[1759843937392,0.1253,4746.0,4745.9,3.4198]
[1759843937692,0.43429308,4746.5,4746.4,0.37897]
[1759843937880,0.43429308,4746.5,4746.4,0.59097]
[1759843938088,0.43429308,4746.5,4746.4,3.79877]
[1759843938288,3.2078,4747.4,4746.9,0.37893]
[1759843938481,0.4319,4747.0,4746.9,0.59093]
[1759843938887,0.4319,4747.0,4746.9,3.79873]
[1759843939284,0.43378986,4747.0,4746.9,0.212]
[1759843939481,5.43378986,4747.0,4746.9,0.212]
[1759843940282,0.43378986,4747.0,4746.9,0.212]
[1759843941190,0.12718986,4747.0,4746.9,0.212]
[1759843941589,0.4319,4747.5,4747.0,0.37893]
[1759843941892,0.1253,4748.0,4747.9,0.37885]
[1759843942094,0.4319,4748.0,4747.9,3.79865]
[1759843942392,0.1253,4749.5,4748.0,0.94712]
[1759843942393,0.3066,4749.4,4748.0,0.94712]
[1759843942583,0.1253,4749.5,4749.4,0.37873]
[1759843942784,0.1253,4750.0,4749.9,0.37869]
[1759843942988,0.12712884,4750.0,4749.9,0.212]
[1759843943188,0.43372884,4750.0,4749.9,0.212]
[1759843944496,0.00182884,4750.0,4749.9,0.212]
[1759843945496,0.00182884,4750.0,4749.9,3.4198]
[1759843945799,0.3022,4751.3,4751.2,0.37859]
[1759843945988,0.3022,4751.8,4751.2,0.212]
[1759843946486,0.3022,4751.4,4751.2,0.212]
[1759843946688,0.00259805,4751.4,4751.3,3.2078]
[1759843946893,0.3022,4752.2,4751.3,3.2078]
[1759843947089,0.1253,4751.5,4751.3,3.2078]
[1759843947295,0.3022,4751.4,4751.3,3.2078]
[1759843947593,0.1253,4751.0,4750.1,0.37867]
[1759843947898,0.3022,4750.4,4750.2,0.212]
[1759843948090,0.3022,4750.3,4750.2,0.212]
[1759843948988,0.1253,4750.5,4750.2,0.212]
[1759843949897,0.3022,4750.4,4750.2,0.212]
[1759843950092,0.3022,4750.4,4750.3,0.37866]
[1759843950285,0.1253,4750.5,4750.2,0.212]
[1759843950696,0.1253,4750.5,4750.2,0.59067]
[1759843950900,0.3022,4750.4,4750.2,0.212]
[1759843951197,0.1253,4750.5,4750.2,0.212]
[1759843951692,0.3022,4750.4,4750.2,0.212]
[1759843951888,0.1253,4750.5,4750.3,0.37866]
[1759843952090,0.43017284,4751.0,4750.8,0.37862]
[1759843952292,0.3022,4750.9,4750.8,0.37862]
[1759843952493,0.3022,4750.9,4750.8,0.59062]
[1759843952893,0.00267284,4751.0,4750.8,0.59062]
[1759843953196,0.3022,4750.9,4750.8,0.59062]
[1759843953395,0.3022,4750.9,4750.8,0.212]
[1759843953592,0.3022,4750.9,4749.9,2.4198]
[1759843953593,0.1253,4750.0,4749.9,2.4198]
[1759843953793,0.3022,4749.4,4749.3,3.2078]
[1759843953996,0.3022,4749.4,4749.3,0.212]
[1759843954788,0.68093,4749.4,4749.3,0.212]
[1759843954993,0.1253,4748.5,4748.2,3.2078]
[1759843955195,0.1253,4748.5,4748.3,0.212]
[1759843955392,0.3022,4748.4,4748.3,0.212]
[1759843955598,3.88881,4748.4,4748.3,0.212]
[1759843955792,8.88881,4748.4,4748.3,0.0867]
[1759843956396,0.37884,4748.1,4747.4,32.839]
[1759843956606,0.1253,4747.0,4746.5,3.2078]
[1759843956899,0.3022,4746.9,4746.6,0.212]
[1759843957096,0.3022,4746.9,4746.7,0.212]
[1759843957298,0.1253,4747.0,4746.7,0.212]
[1759843957299,0.68114,4746.8,4746.7,0.212]
[1759843957497,0.68342813,4746.8,4746.7,0.2142907]
[1759843957699,5.68342813,4746.8,4746.7,0.2142907]
[1759843957902,0.30448813,4746.8,4746.7,0.0022907]
[1759843958291,5.30448813,4746.8,4746.7,0.0022907]
[1759843959697,0.1225,4746.0,4745.6,3.2078]
[1759843960000,0.1225,4746.0,4745.5,0.212]
[1759843960195,0.3145,4745.9,4745.5,0.212]
[1759843960400,0.3145,4745.9,4745.7,0.37902]
[1759843960800,0.69352,4745.9,4745.7,0.00254519]
[1759843960999,0.1225,4744.5,4744.2,3.2078]
[1759843961198,0.1225,4745.0,4744.4,33.8997]
[1759843961403,0.1225,4744.5,4744.4,33.43513]
[1759843961603,0.437,4744.5,4744.4,33.43513]
[1759843962201,0.437,4744.5,4744.4,33.05868279]
[1759843962409,0.81612,4744.5,4744.4,0.21468279]
[1759843962602,0.437,4744.5,4744.4,0.21468279]
[1759843964205,8.6448,4744.5,4743.3,3.2078]
[1759843964401,0.3145,4743.4,4743.3,3.2078]
[1759843964601,0.3145,4743.4,4743.3,3.4198]
[1759843965507,0.31710665,4743.4,4743.3,3.42139566]
[1759843965708,0.31710665,4743.4,4743.3,0.21359566]
[1759843966307,0.00260665,4743.4,4743.3,0.21359566]
[1759843966504,0.31710665,4743.4,4743.3,0.21359566]
[1759843966905,0.00260665,4743.4,4743.3,0.21359566]
[1759843967303,0.1225,4744.0,4743.4,0.94804]
[1759843967509,0.1225,4744.0,4743.9,3.58697]
[1759843967699,0.3145,4744.4,4744.3,0.37914]
[1759843967906,0.3145,4744.9,4744.8,0.3791]
[1759843968097,0.3145,4744.9,4744.8,3.7989]
[1759843968407,0.31607319,4744.9,4744.8,3.7989]
[1759843968805,0.31607319,4744.9,4744.8,44.5989]
[1759843969904,0.00157319,4744.9,4744.8,49.5989]
[1759843970112,0.31607319,4744.9,4744.8,41.012]
[1759843970404,0.31607319,4744.9,4744.8,0.212]
[1759843970603,0.00157319,4744.9,4744.8,0.212]
[1759843970798,0.00157319,4744.9,4744.8,40.8]
[1759843971000,0.31607319,4744.9,4744.8,41.3911]
[1759843971202,0.31607319,4744.9,4744.8,0.212]
[1759843971404,5.31607319,4744.9,4744.8,0.212]
[1759843971608,0.3145,4743.9,4743.8,0.37917]
[1759843971808,0.3145,4743.9,4743.8,41.39117]
[1759843972000,0.1225,4744.5,4744.4,0.37913]
[1759843972204,0.437,4744.5,4744.4,0.59113]
[1759843972810,0.437,4744.5,4744.4,0.212]
[1759843973210,0.00157319,4744.9,4744.4,1.15983]
[1759843973613,0.00157319,4744.9,4744.7,0.37911]
[1759843973810,0.3258,4744.8,4744.7,0.37911]
[1759843974014,0.3258,4744.8,4744.7,0.59111]
[1759843974802,0.3258,4744.8,4744.7,0.212]
[1759843975206,5.3258,4744.8,4744.7,0.212]
[1759843975408,0.1267,4744.0,4743.8,40.8]
[1759843975608,0.4525,4744.0,4743.9,0.212]
[1759843978108,0.4525,4744.0,4743.9,41.012]
[1759843978306,0.4525,4744.0,4743.9,0.212]
[1759843978714,0.3258,4743.9,4743.8,0.37918]
[1759843978907,0.3258,4743.9,4743.8,0.59118]
[1759843979606,0.3258,4743.9,4743.8,0.212]
[1759843980208,0.70498,4743.8,4743.7,0.754]
[1759843980614,0.4525,4743.5,4743.4,0.212]
[1759843982913,0.4525,4743.5,4743.4,0.59121]
[1759843983119,0.1267,4743.5,4743.4,0.59121]
[1759843983315,0.4525,4743.5,4743.4,0.59121]
[1759843983615,0.1267,4744.0,4743.9,0.37917]
[1759843983919,0.4525,4744.0,4743.9,0.212]
[1759843984413,0.70497,4743.9,4743.8,1.1739]
[1759843984619,3.91277,4743.9,4743.8,1.1739]
[1759843985920,3.5336,4743.9,4743.8,1.1739]
[1759843986118,3.5336,4743.9,4743.8,1.55308]
[1759843986614,3.5336,4743.9,4743.8,1.1739]
[1759843988618,8.5336,4743.9,4743.8,1.1739]
[1759843988816,8.5336,4743.9,4743.8,0.8455]
[1759843989017,8.5336,4743.9,4741.7,33.81837]
[1759843989018,0.83174,4743.0,4742.0,3.2078]
[1759843989220,0.3258,4742.4,4742.2,0.212]
[1759843989425,0.1267,4742.5,4742.2,0.212]
[1759843989625,0.3258,4742.4,4742.3,0.3793]
[1759843990121,0.3258,4742.4,4742.3,0.38147818]
[1759843990324,0.3258,4742.9,4742.4,0.94824]
[1759843990619,3.3345,4743.0,4742.8,0.37926]
[1759843990820,3.3345,4743.0,4742.9,0.212]
[1759843991419,3.6603,4743.0,4742.9,0.212]
[1759843991821,3.6603,4743.5,4743.4,0.37921]
[1759843992021,3.6603,4743.5,4743.4,0.59121]
[1759843994021,0.4525,4743.5,4743.4,0.59121]
[1759843994929,3.6603,4744.0,4743.4,0.212]
[1759843995125,0.1267,4743.5,4743.4,0.212]
[1759843995329,3.6603,4743.5,4743.4,0.212]
[1759843995627,0.37924,4743.1,4743.0,0.1391]
[1759843995820,0.70504,4743.1,4743.0,0.1391]
[1759843996020,0.212,4743.3,4742.2,0.212]
[1759843996021,0.70509,4742.4,4742.2,0.212]
[1759843996226,0.3258,4741.4,4741.0,3.2078]
[1759843996529,0.1267,4741.5,4741.0,3.2078]
[1759843996530,0.1267,4741.5,4741.1,0.212]
[1759843996829,0.3258,4741.4,4741.1,0.212]
[1759843997222,0.32839839,4741.4,4741.1,0.21382163]
[1759843997618,0.00259839,4741.4,4741.1,0.21382163]
[1759843997821,0.3258,4741.3,4741.2,0.37939]
[1759843998223,0.00259839,4741.4,4741.2,0.37939]
[1759843999028,0.3258,4741.3,4741.2,0.37939]
[1759843999428,0.00259839,4741.4,4741.2,0.37939]
[1759843999627,0.3258,4741.3,4741.2,0.37939]
[1759843999825,0.00259839,4741.4,4741.2,0.37939]
[1759844000026,0.32839839,4741.4,4741.2,0.37939]
[1759844000429,0.00259839,4741.4,4741.1,0.00182163]
[1759844001023,0.00259839,4741.4,4741.1,0.21382163]
[1759844001223,0.3258,4741.3,4741.2,0.37939]
[1759844001418,0.00259839,4741.4,4741.2,0.37939]
[1759844001818,0.3258,4742.3,4742.1,0.37932]
[1759844002027,0.3258,4742.9,4742.4,0.94824]
[1759844002228,0.4525,4743.0,4742.8,0.37926]
[1759844002430,0.1267,4743.0,4742.9,0.212]
[1759844002729,0.1267,4743.0,4742.9,41.012]
[1759844002921,0.45461003,4743.0,4742.9,0.212]
[1759844003116,0.12881003,4743.0,4742.9,0.212]
[1759844003319,3.66301003,4743.0,4742.9,40.8]
[1759844003521,3.66301003,4743.0,4741.1,0.00182163]
[1759844003522,0.3264,4741.9,4741.5,0.37936]
[1759844003724,0.1212,4741.5,4741.3,0.37937]
[1759844003925,0.1212,4741.5,4741.4,0.212]
[1759844004331,0.4476,4741.5,4741.4,0.212]
[1759844004825,3.2078,4741.7,4741.5,0.37936]
[1759844005227,0.82696,4741.5,4741.4,0.212]
[1759844005428,0.4476,4741.5,4741.4,0.212]
[1759844005926,0.4476,4741.5,4741.4,0.59137]
[1759844007229,0.1212,4741.5,4741.4,0.59137]
[1759844007429,3.2078,4741.7,4741.6,0.37936]
[1759844008029,3.2078,4741.7,4741.6,41.17936]
[1759844008229,3.5342,4741.7,4741.6,41.17936]
[1759844008834,0.1212,4741.5,4741.4,0.59137]
[1759844009028,0.4476,4741.5,4741.4,0.59137]
[1759844009228,0.4476,4741.5,4741.4,41.012]
[1759844010035,0.4476,4741.5,4741.4,0.212]
[1759844010535,0.4476,4741.5,4741.4,41.012]
[1759844012430,0.4476,4741.5,4741.4,0.212]
[1759844013934,0.1212,4741.5,4741.4,0.212]
[1759844015337,0.4476,4741.5,4741.4,0.212]
[1759844016027,0.3264,4741.2,4741.1,0.00182163]
[1759844016234,3.5342,4741.2,4741.1,0.00182163]
[1759844016432,0.3264,4741.2,4741.1,0.21382163]
[1759844016735,0.4476,4741.5,4741.3,0.37938]
[1759844016937,0.3264,4741.4,4741.3,0.37938]
[1759844017127,0.3264,4741.4,4741.3,0.59138]
[1759844017332,0.3264,4741.4,4741.3,0.212]
[1759844017534,0.1212,4741.5,4741.4,0.37937]
[1759844017936,0.3264,4741.4,4741.3,0.212]
[1759844018838,0.37938,4741.3,4741.1,0.00182163]
[1759844019133,3.5342,4741.2,4741.1,0.00182163]
[1759844020340,3.7462,4741.2,4741.1,0.00182163]
[1759844020538,3.5342,4741.2,4741.1,0.00182163]
[1759844022238,8.5342,4741.2,4741.1,0.00182163]
[1759844022435,3.5342,4741.2,4741.1,0.00182163]
[1759844023842,0.308,4739.9,4739.8,0.3795]
[1759844024141,0.308,4739.9,4739.4,4.15662]
[1759844024335,0.308,4739.9,4739.8,0.3795]
[1759844024742,0.1298,4740.0,4739.8,0.3809945]
[1759844024937,0.4378,4740.0,4739.9,0.212]
[1759844025337,0.4378,4740.0,4739.9,0.59149]
[1759844025837,3.2078,4740.3,4739.9,0.212]
[1759844026142,0.4378,4740.5,4740.4,0.37945]
[1759844026440,0.4378,4740.5,4740.4,0.59145]
[1759844026942,3.2078,4740.8,4740.7,0.37943]
[1759844027144,0.1298,4741.0,4740.9,0.37941]
[1759844027334,0.1298,4741.0,4740.9,0.59141]
[1759844027536,0.1298,4741.0,4740.9,41.39141]
[1759844027841,0.4378,4741.0,4740.9,41.39141]
[1759844028540,0.1298,4741.5,4741.4,0.37937]
[1759844028744,0.1298,4742.5,4741.9,0.37933]
[1759844029036,0.1298,4742.5,4742.4,0.37929]
[1759844029238,0.1298,4742.5,4742.4,3.79909]
[1759844029434,0.1298,4742.5,4742.4,49.59909]
[1759844029634,0.1298,4743.5,4743.3,0.37921]
[1759844029940,0.1298,4744.0,4743.4,3.4198]
[1759844030138,0.1298,4744.0,4743.9,3.58697]
[1759844030340,0.1298,4744.0,4743.9,3.2078]
[1759844030635,0.440506,4744.0,4743.9,3.21003838]
[1759844030841,0.440506,4744.0,4743.9,3.42303838]
[1759844031334,0.440506,4744.0,4743.9,8.42303838]
[1759844032134,0.440506,4744.0,4743.9,49.22303838]
[1759844032340,0.1298,4745.0,4743.9,50.33545604]
[1759844032536,0.1298,4744.0,4743.9,41.55889604]
[1759844032737,0.1298,4744.0,4743.9,44.60220838]
[1759844033344,0.1318021,4744.0,4743.9,44.60220838]
[1759844033943,0.1318021,4744.0,4743.9,44.22303838]
[1759844034248,0.4695021,4744.0,4743.9,44.22303838]
[1759844034838,0.1298,4744.5,4744.4,0.37913]
[1759844035142,0.1288,4744.5,4744.4,3.79893]
[1759844035338,0.1288,4744.5,4744.4,3.4198]
[1759844035744,0.13146478,4744.5,4744.4,3.4198]
[1759844036842,0.46916478,4744.5,4744.4,3.79893]
[1759844037540,0.46916478,4744.5,4744.4,3.4198]
[1759844038046,0.46916478,4744.5,4744.4,44.2198]
[1759844038736,0.46916478,4744.5,4744.4,3.2078]
[1759844038936,0.84566,4744.0,4743.6,3.2078]
[1759844039141,0.3377,4743.9,4743.7,0.212]
[1759844039445,0.3377,4743.8,4743.7,0.212]
[1759844040043,0.3377,4743.8,4743.7,0.21357042]
[1759844041445,0.1288,4744.0,4743.8,0.37918]
[1759844041446,0.3377,4743.9,4743.8,0.37918]
[1759844041753,0.3377,4743.9,4743.8,0.59118]
[1759844042045,0.13146478,4744.5,4744.3,0.37914]
[1759844042245,0.13146478,4744.5,4743.8,46.012]
[1759844042246,0.1298,4745.5,4744.9,0.94773]
[1759844042544,0.1288,4745.5,4745.4,3.58685]
[1759844042748,0.3377,4744.9,4744.7,3.2078]
[1759844043047,0.3377,4744.9,4744.8,41.013]
[1759844043344,0.33985096,4744.9,4744.8,0.213]
[1759844044643,0.00215096,4744.9,4744.8,0.213]
[1759844044845,0.1288,4745.0,4744.9,0.37909]
[1759844045048,0.1288,4745.0,4744.9,3.58689]
[1759844045244,0.4665,4745.5,4745.4,0.37905]
[1759844045444,0.1288,4746.0,4745.9,0.37901]
[1759844045654,0.1288,4746.0,4745.9,3.79981]
[1759844045842,0.13125445,4746.0,4745.9,3.79981]
[1759844046249,0.46895445,4746.0,4745.9,3.4208]
[1759844048656,0.13125445,4746.0,4745.9,3.4208]
[1759844048852,0.46895445,4746.0,4745.9,3.4208]
[1759844049053,0.46895445,4746.0,4745.9,3.2078]
[1759844049252,0.46895445,4746.0,4745.9,3.4208]
[1759844049453,0.46895445,4746.0,4745.9,0.213]
[1759844050245,5.46895445,4746.0,4745.9,0.213]
[1759844050451,5.46895445,4746.0,4744.9,3.2078]
[1759844050452,0.4665,4745.0,4744.9,3.2078]
[1759844050646,0.4665,4745.0,4744.9,3.4208]
[1759844051255,6.41422,4745.0,4744.1,0.0039]
[1759844051457,0.71684,4744.3,4744.2,0.213]
[1759844051959,0.71684,4744.3,4743.7,0.00157042]
[1759844051960,0.71688,4743.8,4743.7,0.00157042]
[1759844052159,3.92468,4743.8,4743.7,0.21457042]
[1759844052653,0.3377,4743.8,4743.7,0.21457042]
[1759844052854,8.5455,4743.8,4743.7,0.21457042]
[1759844053060,0.37926,4742.8,4742.7,3.2078]
[1759844053256,0.1288,4742.5,4742.2,3.2078]
[1759844053450,0.3377,4742.4,4742.3,0.213]
[1759844054254,0.33979459,4742.4,4742.3,41.01476214]
[1759844054753,0.1288,4742.5,4742.4,0.37929]
[1759844055158,0.4665,4742.5,4742.4,0.37929]
[1759844055361,0.3377,4742.4,4742.3,0.21476214]
[1759844055660,0.3377,4742.4,4742.3,41.01476214]
[1759844055860,0.33960163,4742.4,4742.3,41.01476214]
[1759844057458,0.00190163,4742.4,4742.3,41.01476214]
[1759844057960,0.33960163,4742.4,4742.3,41.01476214]
[1759844058159,0.00190163,4742.4,4742.3,41.01476214]
[1759844058358,0.1288,4742.5,4742.4,0.37929]
[1759844058559,0.4665,4742.5,4742.4,0.37929]
[1759844058756,0.1288,4742.5,4742.4,0.37929]
[1759844059260,0.3377,4742.4,4742.3,0.00176214]
[1759844060664,5.3377,4742.4,4742.3,0.00176214]
[1759844062063,0.3377,4742.4,4742.3,0.00176214]
[1759844063264,5.3377,4742.4,4742.3,0.00176214]
[1759844064460,0.3377,4742.4,4742.3,0.00176214]
[1759844064861,0.3377,4742.4,4742.3,0.21476214]
[1759844066853,0.130801,4742.5,4742.4,0.37929]
[1759844067062,0.479901,4742.5,4742.4,3.58709]
[1759844067560,0.130801,4742.5,4742.4,44.38709]
[1759844068065,0.1288,4743.0,4742.9,0.37925]
[1759844068264,0.4779,4743.0,4742.9,3.80005]
[1759844069063,0.3491,4743.4,4743.3,0.37921]
[1759844069366,0.35083164,4743.4,4743.3,0.59221]
[1759844069962,0.35083164,4743.4,4743.3,0.213]
[1759844072664,3.2078,4743.9,4743.3,0.213]
[1759844072665,0.3491,4743.9,4743.4,0.37921]
[1759844072870,0.1288,4744.0,4743.8,3.58698]
[1759844073069,0.1288,4744.0,4743.9,0.213]
[1759844073369,0.4779,4744.0,4743.9,41.013]
[1759844073770,0.4805089,4744.0,4743.9,41.013]
[1759844074963,0.4805089,4744.0,4743.9,0.213]
[1759844075570,0.1314089,4744.0,4743.9,0.213]
[1759844076460,0.1289,4745.0,4744.4,0.94783]
[1759844076762,0.1289,4746.0,4745.9,0.37901]
[1759844076969,0.3491,4746.9,4746.7,0.37894]
[1759844077266,0.3491,4746.9,4746.8,3.4208]
[1759844077467,0.73022676,4746.9,4746.8,0.213]
[1759844077667,0.35129676,4746.9,4746.8,0.213]
[1759844077863,0.35129676,4746.9,4746.7,0.00184477]
[1759844077864,5.73023676,4746.9,4746.7,0.00184477]
[1759844078062,5.35129676,4746.9,4746.7,0.21484477]
[1759844078261,0.3491,4746.8,4746.7,0.21484477]
[1759844079266,0.00219676,4746.9,4746.7,0.59378477]
[1759844079869,0.3491,4746.8,4746.7,0.21484477]
[1759844084266,0.1289,4746.0,4745.6,3.58683]
[1759844084466,0.1289,4746.0,4745.7,0.213]
[1759844084774,0.3491,4745.9,4745.7,0.213]
[1759844085067,0.72811,4745.9,4745.7,0.213]
[1759844085471,0.3491,4745.9,4745.7,0.21452434]
[1759844085865,0.1289,4746.0,4745.7,0.21452434]
[1759844086266,0.3491,4745.9,4745.7,0.59354434]
[1759844086466,0.1289,4746.0,4745.7,0.59354434]
[1759844086673,0.3491,4745.9,4745.7,0.21452434]
[1759844086975,0.02780762,4745.8,4745.7,0.59354434]
[1759844087170,0.36570762,4745.8,4745.7,0.59354434]
[1759844088573,0.36570762,4745.8,4745.7,0.21452434]
[1759844088767,0.02780762,4745.8,4745.7,0.21452434]
[1759844088973,0.1289,4746.5,4746.3,0.37898]
[1759844089177,0.1289,4746.5,4746.4,3.4198]
[1759844089575,0.4668,4746.5,4746.4,3.4198]
[1759844092178,0.34009676,4746.9,4746.8,0.37894]
[1759844092470,0.34009676,4746.9,4746.8,0.59094]
[1759844093176,0.34009676,4746.9,4746.8,0.212]
[1759844093978,0.1289,4747.5,4746.8,0.212]
[1759844094175,0.3381,4747.4,4747.3,0.3789]
[1759844094474,0.3381,4747.4,4747.3,0.5909]
[1759844094980,0.33979811,4747.4,4747.3,0.5909]
[1759844095177,0.00169811,4747.4,4747.3,0.5909]
[1759844095480,0.022,4747.9,4747.8,0.37886]
[1759844095676,0.3601,4747.9,4747.8,3.79866]
[1759844096476,0.36263707,4747.9,4747.8,3.79866]
[1759844096779,0.36263707,4747.9,4747.8,0.212]
[1759844098276,0.74148707,4747.9,4747.8,0.212]
[1759844098480,0.36263707,4747.9,4747.8,0.212]
[1759844098679,5.36263707,4747.9,4747.8,0.212]
[1759844099078,8.57043707,4747.9,4747.8,0.212]
[1759844099276,8.59945846,4747.9,4747.8,0.212]
[1759844100478,8.59945846,4747.9,4746.3,3.2078]
[1759844100479,0.37896,4746.5,4746.3,3.2078]
[1759844100779,0.3381,4746.4,4746.3,3.2078]
[1759844100980,5.3381,4746.4,4746.3,3.2078]
[1759844101381,0.71708,4746.3,4746.2,0.212]
[1759844101576,0.3381,4746.3,4746.2,0.212]
[1759844102273,0.3381,4746.3,4746.2,3.4198]
[1759844102481,0.1384,4746.5,4746.3,0.34995861]
[1759844102680,0.3381,4746.4,4746.3,0.34995861]
[1759844102880,0.4765,4747.0,4746.9,0.37893]
[1759844103080,0.4765,4747.0,4746.9,0.212]
[1759844104281,0.3381,4746.2,4745.9,1.1154348]
[1759844104480,0.71711,4745.9,4745.7,0.00152434]
[1759844104780,0.71711,4745.9,4745.7,0.21352434]
[1759844105784,5.3381,4745.8,4745.7,0.00152434]
[1759844105981,0.3381,4745.8,4745.7,0.00152434]
[1759844106180,0.1384,4746.0,4745.8,0.37902]
[1759844106578,0.3381,4746.3,4746.2,0.37899]
[1759844106781,0.3381,4746.3,4746.2,3.79879]
[1759844106981,0.3381,4746.3,4746.2,4.54059949]
[1759844107284,0.3381,4746.3,4746.2,3.4198]
[1759844107784,0.3381,4746.4,4746.3,0.37898]
[1759844107979,0.3381,4746.4,4746.2,3.4198]
[1759844108183,0.3381,4746.4,4746.2,0.212]
[1759844108378,0.3381,4746.4,4745.7,3.20932434]
[1759844108379,0.1384,4746.0,4745.7,1.1223885]
[1759844108583,0.3381,4745.8,4745.7,0.00152434]
[1759844108787,0.3381,4745.4,4745.0,1.12086416]
[1759844108983,0.3381,4744.9,4744.8,0.213]
[1759844109177,0.36712139,4744.9,4744.8,0.213]
[1759844109377,0.71724,4744.3,4744.2,1.12086416]
[1759844109585,0.71724,4744.3,4743.5,3.2078]
[1759844109586,0.1384,4744.0,4743.9,0.213]
[1759844109785,0.47835777,4744.0,4743.9,0.21481694]
[1759844110287,0.50737916,4744.0,4743.9,0.21481694]
[1759844110977,0.02902139,4744.0,4743.9,6.3356811]
[1759844111188,0.1384,4744.5,4744.4,0.37913]
[1759844111392,0.1384,4744.5,4744.4,4.9200494]
[1759844111583,0.4765,4745.0,4744.9,0.37909]
[1759844111780,0.51741,4746.0,4745.2,0.37906]
[1759844111980,0.3381,4745.4,4745.3,0.213]
[1759844112183,0.14094562,4745.5,4745.3,0.213]
[1759844112480,0.4765,4745.5,4745.4,3.2078]
[1759844113287,0.4765,4745.5,4745.1,1.1201194]
[1759844113486,0.3381,4745.4,4745.2,0.213]
[1759844113985,0.1384,4745.0,4744.9,3.2078]
[1759844114188,0.4765,4745.0,4744.9,3.2078]
[1759844114791,0.4765,4745.0,4744.9,3.4208]